bitfinex/quotes_ETHUSD_20250623
["timestamp","ask_amount","ask_price","bid_price","bid_amount"]
[1750654933109,0.41706777,2240.2,2240.0,0.0579]
[1750654933317,0.41706794,2240.1,2239.9,0.8725]
[1750654933538,0.417068,2240.0,2239.9,1.32255321]
[1750654933716,0.417068,2240.2,2239.9,1.32255321]
[1750654933952,0.41706689,2240.1,2239.9,3.66795321]
[1750654934152,0.41706689,2240.0,2239.9,3.66795321]
[1750654934443,0.41705406,2240.0,2239.9,3.66795321]
[1750654934619,7.2,2240.1,2239.9,4.14547103]
[1750654935730,7.2,2240.1,2239.9,4.08757103]
[1750654935928,7.2,2240.1,2239.9,4.14547103]
[1750654936135,0.0863,2240.5,2240.0,7.18060613]
[1750654936349,7.198,2240.1,2240.0,7.18060613]
[1750654936654,7.198,2240.1,2240.0,8.30742385]
[1750654937649,0.0446,2240.5,2240.0,8.30742385]
[1750654937856,9.47435368,2240.4,2240.1,0.0579]
[1750654938038,0.41635368,2240.3,2240.1,0.0579]
[1750654938355,0.41635368,2240.3,2240.0,10.34060613]
[1750654938660,0.41634664,2240.2,2240.0,11.46742385]
[1750654938818,9.058,2240.4,2240.0,11.46742385]
[1750654939025,9.058,2240.3,2240.0,11.46742385]
[1750654939226,0.41634149,2240.2,2240.0,11.46742385]
[1750654940245,9.058,2240.3,2240.0,11.46742385]
[1750654941357,0.0863,2240.5,2240.0,11.46742385]
[1750654941653,9.47311183,2240.4,2240.0,11.46742385]
[1750654941854,0.41611183,2240.3,2240.0,10.34060613]
[1750654942730,1.861,2240.2,2240.1,3.2179]
[1750654942923,9.056,2240.2,2240.1,3.2179]
[1750654943848,0.0446,2240.5,2240.1,3.2179]
[1750654944061,9.056,2240.2,2240.1,3.2179]
[1750654945754,9.056,2240.2,2240.1,3.16]
[1750654946258,9.056,2240.2,2240.1,3.2179]
[1750654948756,9.056,2240.2,2240.1,0.0579]
[1750654948955,9.47241972,2240.2,2240.1,0.0579]
[1750654949254,9.056,2240.2,2240.1,0.0579]
[1750654949459,9.46438339,2240.2,2240.1,0.0579]
[1750654949678,0.41638339,2240.2,2240.1,0.0579]
[1750654949887,9.048,2240.2,2240.0,3.16]
[1750654950033,9.1343,2240.2,2240.0,3.16]
[1750654950233,9.0926,2240.2,2240.0,3.16]
[1750654950476,0.41643253,2240.1,2240.0,3.16]
[1750654950633,7.192,2240.1,2240.0,3.2179]
[1750654950833,0.0446,2240.4,2240.1,0.0579]
[1750654951344,9.047,2240.3,2240.1,0.0579]
[1750654951666,0.41642762,2240.2,2240.1,0.0579]
[1750654952170,0.41642978,2240.2,2240.1,0.0579]
[1750654952563,0.41703106,2240.2,2240.1,0.0579]
[1750654952870,0.41703113,2240.2,2240.1,0.0579]
[1750654953167,0.4170183,2240.2,2240.1,0.0579]
[1750654953848,9.047,2240.3,2240.1,0.0579]
[1750654954167,0.41706023,2240.2,2240.1,0.0579]
[1750654954362,9.047,2240.3,2240.1,0.0579]
[1750654954665,0.41706037,2240.2,2240.1,0.0579]
[1750654954969,0.41705037,2240.2,2240.1,0.0579]
[1750654955682,0.41705037,2240.2,2240.0,3.16]
[1750654955836,0.41705037,2240.1,2240.0,3.16]
[1750654956036,0.41705037,2240.1,2240.0,3.2179]
[1750654957271,0.41792806,2240.1,2240.0,3.2179]
[1750654957569,0.41792806,2240.1,2240.0,3.16]
[1750654957772,0.46252806,2240.1,2240.0,3.16]
[1750654957949,0.46243816,2240.1,2240.0,3.16]
[1750654958150,0.4626366,2240.1,2240.0,3.16]
[1750654958736,0.0863,2240.1,2239.5,3.16]
[1750654958936,0.0863,2240.1,2238.8,0.7672]
[1750654958937,0.0446,2239.6,2238.8,0.7672]
[1750654959149,9.5091884,2239.5,2238.9,3.16]
[1750654959348,0.4174884,2239.4,2238.9,3.2179]
[1750654959564,9.4674884,2239.3,2239.1,0.0579]
[1750654959767,10.7756,2239.6,2239.3,0.0579]
[1750654959978,9.46759686,2239.5,2239.3,3.16]
[1750654960277,0.41759686,2239.4,2239.3,3.16]
[1750654960484,0.41759686,2239.4,2239.3,3.2179]
[1750654960650,9.05,2239.5,2239.3,3.16]
[1750654960853,9.05,2239.5,2239.3,3.2179]
[1750654961050,0.41759111,2239.4,2239.3,3.2179]
[1750654961655,0.41754931,2239.4,2239.3,3.2179]
[1750654962467,9.05,2239.5,2239.3,4.33513061]
[1750654962668,0.41709745,2239.4,2239.3,4.33513061]
[1750654963200,9.46909745,2239.4,2239.3,4.33513061]
[1750654963358,1.855,2239.5,2239.4,0.0604]
[1750654963697,9.053,2239.5,2239.4,10.34310613]
[1750654963991,9.053,2239.5,2239.4,12.27040499]
[1750654965558,0.0863,2240.0,2239.4,12.27040499]
[1750654965760,0.41701527,2239.9,2239.6,7.18310613]
[1750654965959,9.053,2239.8,2239.6,7.18310613]
[1750654967085,9.053,2239.8,2239.7,0.0604]
[1750654967294,9.053,2239.8,2239.7,0.77871061]
[1750654967857,9.053,2239.8,2239.7,0.71831061]
[1750654968062,9.053,2239.8,2239.5,7.18310613]
[1750654968960,9.053,2239.8,2239.5,7.12270613]
[1750654969162,9.053,2239.8,2239.6,0.0604]
[1750654969361,9.053,2239.8,2239.6,3.2204]
[1750654971263,9.053,2239.8,2239.6,3.16]
[1750654971493,9.053,2239.8,2239.7,1.08867061]
[1750654972089,0.0417,2240.0,2239.7,1.08867061]
[1750654972283,9.052,2239.8,2239.7,1.08867061]
[1750654972483,1.855,2239.8,2239.7,8.21137674]
[1750654972685,9.051,2239.8,2239.7,8.21137674]
[1750654975300,9.051,2239.8,2239.7,11.37137674]
[1750654975596,9.051,2239.8,2239.7,10.34310613]
[1750654975897,9.46847973,2239.8,2239.7,3.2204]
[1750654976367,9.46847973,2239.8,2239.7,3.16]
[1750654976964,9.051,2239.8,2239.7,3.16]
[1750654977187,9.46860772,2239.8,2239.7,3.16]
[1750654978378,9.46760369,2239.8,2239.7,3.16]
[1750654979070,9.05,2239.8,2239.7,3.16]
[1750654979271,9.4676322,2239.8,2239.7,3.16]
[1750654979577,9.46763547,2239.8,2239.7,3.16]
[1750654979778,9.46777641,2239.8,2239.7,3.16]
[1750654979978,9.46778095,2239.8,2239.7,3.16]
[1750654980688,9.4677706,2239.8,2239.7,3.16]
[1750654981014,0.41777451,2239.8,2239.7,12.15451674]
[1750654981307,9.466791,2239.8,2239.7,12.15451674]
[1750654981885,9.46674738,2239.8,2239.7,12.15451674]
[1750654982192,9.46672928,2239.8,2239.7,12.15451674]
[1750654982505,0.41772928,2239.8,2239.7,11.12020613]
[1750654982685,7.61172928,2239.8,2239.7,10.34310613]
[1750654983214,7.61173505,2239.8,2239.7,10.34310613]
[1750654983810,7.61192556,2239.8,2239.7,3.16]
[1750654984012,7.61193194,2239.8,2239.7,3.16]
[1750654984309,7.61193247,2239.8,2239.7,3.16]
[1750654985109,7.61193133,2239.8,2239.7,3.16]
[1750654985313,7.61193126,2239.8,2239.7,3.16]
[1750654985709,7.6119311,2239.8,2239.7,3.16]
[1750654985915,7.61193142,2239.8,2239.7,3.16]
[1750654986203,7.61193158,2239.8,2239.7,3.16]
[1750654986708,7.61218656,2239.8,2239.7,3.16]
[1750654987883,7.69848656,2239.8,2239.7,3.16]
[1750654988085,7.6984685,2239.8,2239.7,3.16]
[1750654988677,7.65677317,2239.8,2239.1,10.0]
[1750654988876,0.0446,2239.6,2239.1,10.0]
[1750654989077,0.41818966,2239.5,2239.1,10.0604]
[1750654989312,9.46718966,2239.4,2239.1,10.0604]
[1750654989502,0.41818966,2239.3,2239.1,10.0604]
[1750654989825,0.4181861,2239.2,2239.1,10.0604]
[1750654990194,0.41818413,2239.2,2239.1,10.0604]
[1750654990490,0.41818373,2239.2,2239.1,10.0604]
[1750654990688,9.049,2239.4,2239.1,10.0604]
[1750654990913,0.41809296,2239.3,2239.1,10.0604]
[1750654991130,9.049,2239.4,2239.1,10.0604]
[1750654991319,0.41809914,2239.3,2239.1,10.0604]
[1750654991490,9.049,2239.4,2239.1,10.0604]
[1750654991691,0.41809776,2239.3,2239.1,10.0604]
[1750654991892,9.049,2239.4,2239.1,10.0604]
[1750654992092,0.41814194,2239.3,2239.1,10.0604]
[1750654992293,9.049,2239.4,2239.1,10.0604]
[1750654992624,0.41830818,2239.3,2239.1,10.0604]
[1750654992813,0.41830818,2239.2,2239.1,10.0604]
[1750654993016,0.41833356,2239.2,2239.1,13.2204]
[1750654993521,0.41822467,2239.2,2239.1,14.60428043]
[1750654993704,7.195,2239.2,2239.1,14.60428043]
[1750654995636,7.195,2239.2,2239.1,13.2204]
[1750655000021,1.855,2239.3,2239.1,13.16]
[1750655000210,1.855,2239.3,2239.2,17.18190613]
[1750655000408,2.27306572,2239.3,2239.2,17.18190613]
[1750655000932,2.27303739,2239.3,2239.2,17.18190613]
[1750655001542,2.27300239,2239.3,2239.2,17.18190613]
[1750655002041,2.27299202,2239.3,2239.2,17.18190613]
[1750655003540,1.855,2239.3,2239.2,17.18190613]
[1750655003744,2.27281592,2239.3,2239.2,17.18190613]
[1750655004237,1.855,2239.3,2239.2,17.18190613]
[1750655004426,1.855,2239.3,2239.2,19.42628634]
[1750655004632,2.27275584,2239.3,2239.2,19.42628634]
[1750655004810,2.27275584,2239.3,2239.2,20.34190613]
[1750655005011,1.855,2239.3,2239.2,20.34190613]
[1750655005742,2.27276808,2239.3,2239.2,20.34190613]
[1750655007412,1.855,2239.3,2239.2,20.34190613]
[1750655007610,2.27274444,2239.3,2239.2,20.34190613]
[1750655007839,2.27274454,2239.3,2239.2,20.34190613]
[1750655008622,2.27274417,2239.3,2239.2,20.34190613]
[1750655009146,2.27275354,2239.3,2239.2,20.34190613]
[1750655009834,2.27277841,2239.3,2239.2,20.34190613]
[1750655010444,0.0446,2239.7,2239.3,0.0592]
[1750655010658,2.27080493,2239.6,2239.5,7.18190613]
[1750655012056,1.853,2239.6,2239.5,7.18190613]
[1750655012256,2.27082287,2239.6,2239.5,7.18190613]
[1750655012523,9.46481779,2239.6,2239.5,7.18190613]
[1750655013145,9.047,2239.6,2239.5,7.18190613]
[1750655013319,0.41785969,2239.6,2239.5,7.18190613]
[1750655013531,1.853,2239.7,2239.5,8.23510674]
[1750655013726,1.853,2239.7,2239.6,7.18190613]
[1750655013934,2.27106061,2239.7,2239.6,7.18190613]
[1750655014118,0.41806061,2239.7,2239.6,7.93660613]
[1750655015054,0.41805907,2239.7,2239.6,7.93660613]
[1750655015221,0.41805907,2239.7,2239.6,23.1357581]
[1750655015430,10.734,2239.9,2239.6,13.0765581]
[1750655015638,0.41809,2239.8,2239.7,0.0592]
[1750655016356,12.587,2239.9,2239.7,0.0592]
[1750655017448,0.41783465,2239.8,2239.7,0.0592]
[1750655017630,0.41783465,2239.8,2239.7,1.42481587]
[1750655017826,0.41783465,2239.8,2239.7,1.48401587]
[1750655018051,12.587,2239.9,2239.7,1.48401587]
[1750655018253,12.587,2239.9,2239.7,1.42481587]
[1750655018554,12.587,2239.9,2239.8,7.18190613]
[1750655018758,12.587,2239.9,2239.8,10.34190613]
[1750655020456,19.78,2239.9,2239.8,10.34190613]
[1750655022935,19.8246,2239.9,2239.8,3.16]
[1750655023258,19.8663,2239.9,2239.8,3.16]
[1750655023458,19.8246,2239.9,2239.8,3.16]
[1750655024128,19.8663,2239.9,2239.8,3.16]
[1750655027046,19.8246,2239.9,2239.8,3.16]
[1750655027645,19.8663,2239.9,2239.8,3.16]
[1750655028567,19.8246,2239.9,2239.3,10.8142]
[1750655028757,19.8663,2239.9,2239.3,16.27796421]
[1750655029538,19.8663,2239.9,2239.3,13.16]
[1750655029539,0.0863,2239.8,2239.3,13.16]
[1750655029745,0.0863,2239.8,2239.1,0.0598]
[1750655029746,0.0863,2239.6,2239.2,10.0]
[1750655029945,7.194,2239.5,2239.2,10.0]
[1750655030146,1.853,2239.4,2239.2,10.0]
[1750655030765,1.853,2239.4,2239.2,10.0598]
[1750655032942,1.853,2239.4,2239.3,0.0598]
[1750655033343,9.46707615,2239.4,2239.3,0.0598]
[1750655033543,9.46706063,2239.4,2239.3,2.09405061]
[1750655033771,9.46703557,2239.4,2239.3,2.09405061]
[1750655033972,9.049,2239.4,2239.3,2.09405061]
[1750655034160,9.46703066,2239.4,2239.3,2.09405061]
[1750655034976,9.46699276,2239.4,2239.3,2.09405061]
[1750655035851,9.46699276,2239.4,2239.3,2.90185061]
[1750655036193,9.46697359,2239.4,2239.3,2.90185061]
[1750655038263,9.46697359,2239.4,2239.3,0.8676]
[1750655038454,9.049,2239.4,2239.3,0.8676]
[1750655038655,9.46701689,2239.4,2239.3,0.8676]
[1750655038982,9.46701689,2239.4,2239.3,0.0598]
[1750655039385,9.46706475,2239.4,2239.3,0.0598]
[1750655039982,9.46706338,2239.4,2239.3,0.0598]
[1750655040586,9.049,2239.4,2239.3,2.16919061]
[1750655040754,9.46707069,2239.4,2239.3,2.16919061]
[1750655040957,9.049,2239.4,2239.3,2.16919061]
[1750655041254,9.05,2239.4,2239.3,2.10939061]
[1750655041455,9.05,2239.4,2239.3,2.16919061]
[1750655041975,9.05,2239.4,2239.3,2.93799061]
[1750655043457,9.46807855,2239.4,2239.3,2.93799061]
[1750655044485,9.46807855,2239.4,2239.3,0.8286]
[1750655044697,9.46807855,2239.4,2239.3,0.0598]
[1750655045494,0.4180201,2239.4,2239.3,0.0598]
[1750655045786,9.4670201,2239.4,2239.3,0.0598]
[1750655046284,9.4670201,2239.4,2239.3,3.2198]
[1750655046479,9.46717076,2239.4,2239.3,5.32942061]
[1750655046999,9.46717076,2239.4,2239.3,3.2198]
[1750655048171,9.46713065,2239.4,2239.3,3.2198]
[1750655048393,9.46713272,2239.4,2239.3,3.2198]
[1750655049775,9.4673965,2239.4,2239.3,3.2198]
[1750655050487,0.4183965,2239.4,2239.3,4.0082]
[1750655050670,0.4183965,2239.4,2239.3,6.16594249]
[1750655050870,0.4184092,2239.4,2239.3,6.12129061]
[1750655051259,9.049,2239.5,2239.3,6.12129061]
[1750655051486,0.41841043,2239.4,2239.3,13.00594303]
[1750655051798,9.049,2239.7,2239.5,0.0598]
[1750655051960,9.049,2239.7,2239.5,1.35621906]
[1750655052161,0.41838552,2239.6,2239.5,1.35621906]
[1750655052391,10.734,2239.9,2239.5,1.40086734]
[1750655052695,0.4183716,2239.8,2239.6,3.9513]
[1750655052895,0.4183716,2239.8,2239.7,7.18140613]
[1750655052896,9.049,2239.8,2239.7,7.18140613]
[1750655053110,9.4673682,2239.8,2239.7,7.18140613]
[1750655053392,9.46746761,2239.8,2239.7,8.42431865]
[1750655053890,9.049,2239.8,2239.7,8.42431865]
[1750655054092,9.46746501,2239.8,2239.7,8.42431865]
[1750655054459,9.049,2239.8,2239.7,8.42431865]
[1750655055790,9.049,2239.8,2239.7,8.36561865]
[1750655055965,9.46738417,2239.8,2239.7,8.42431865]
[1750655056167,9.46736496,2239.8,2239.7,8.42431865]
[1750655056364,0.41836496,2239.8,2239.7,8.42431865]
[1750655056774,7.61136496,2239.8,2239.7,8.42431865]
[1750655057064,7.193,2239.8,2239.7,8.42431865]
[1750655057690,10.734,2239.9,2239.7,8.42431865]
[1750655057895,7.193,2239.8,2239.7,7.18140613]
[1750655058194,7.193,2239.8,2239.7,10.34140613]
[1750655058694,7.193,2239.8,2239.7,20.34140613]
[1750655060010,12.589,2239.9,2239.7,20.34140613]
[1750655060207,7.193,2239.8,2239.7,20.34140613]
[1750655060368,7.193,2239.8,2239.7,22.58431865]
[1750655061264,0.0417,2240.0,2239.9,0.7817]
[1750655061470,0.0417,2240.0,2239.9,11.12310613]
[1750655061701,9.0897,2240.0,2239.9,11.12310613]
[1750655062269,9.0897,2240.0,2239.9,4.0004]
[1750655062483,9.0897,2240.0,2239.9,11.12310613]
[1750655062684,9.0897,2240.0,2239.9,13.459708]
[1750655067003,0.0417,2240.0,2239.9,23.459708]
[1750655067300,7.2337,2240.0,2239.9,23.459708]
[1750655072838,0.0417,2240.0,2239.9,23.459708]
[1750655074646,0.0417,2240.0,2239.9,22.619308]
[1750655074806,0.0417,2240.0,2239.9,22.678008]
[1750655075831,0.0417,2240.0,2239.9,23.441308]
[1750655076138,0.0446,2240.6,2239.9,23.441308]
[1750655076347,7.191,2240.7,2240.5,7.18140613]
[1750655076511,9.044,2240.7,2240.5,10.34140613]
[1750655076814,9.1465,2240.7,2240.5,3.16]
[1750655077013,0.0579,2240.6,2240.5,3.16]
[1750655080345,9.0886,2240.7,2240.5,3.16]
[1750655080645,9.1465,2240.7,2240.5,3.16]
[1750655081746,7.191,2240.6,2240.3,7.97490613]
[1750655082843,7.191,2240.6,2240.4,0.0569]
[1750655083946,7.191,2240.6,2240.3,7.97310613]
[1750655084746,7.191,2240.6,2240.3,8.42762719]
[1750655085832,7.191,2240.6,2240.3,7.63412719]
[1750655086715,7.191,2240.6,2240.3,7.57722719]
[1750655086949,0.0577,2240.5,2240.3,7.57722719]
[1750655088853,0.0577,2240.5,2240.3,0.45452106]
[1750655089052,0.0577,2240.5,2240.2,3.16]
[1750655090020,0.0577,2240.5,2240.2,3.60938043]
[1750655091771,0.1023,2240.4,2240.2,3.60938043]
[1750655093679,0.1023,2240.4,2240.2,0.44938043]
[1750655093976,0.1023,2240.4,2240.1,3.16]
[1750655094373,0.1023,2240.4,2240.1,10.72059837]
[1750655094576,0.1023,2240.4,2240.1,10.77749837]
[1750655094777,0.0446,2240.4,2240.1,13.16561129]
[1750655095157,0.0446,2240.4,2240.1,13.10871129]
[1750655095357,0.0446,2240.4,2240.2,0.0569]
[1750655095866,0.0446,2240.4,2240.1,13.16561129]
[1750655099488,0.0446,2240.4,2240.1,10.00561129]
[1750655100386,0.0446,2240.4,2240.1,9.94871129]
[1750655100693,7.19,2240.5,2240.4,0.0569]
[1750655100880,9.042,2240.5,2240.4,0.0569]
[1750655101693,1.852,2240.5,2240.4,0.0569]
[1750655105496,1.852,2240.5,2240.4,3.2169]
[1750655106984,0.0446,2240.9,2240.4,3.2169]
[1750655106985,1.852,2240.7,2240.5,0.7516]
[1750655107190,1.852,2240.7,2240.6,7.57522931]
[1750655107588,0.0446,2241.2,2240.6,10.67832931]
[1750655107788,0.0577,2241.4,2241.1,7.12270613]
[1750655108104,9.042,2241.3,2241.1,7.12270613]
[1750655108307,9.0997,2241.3,2241.1,7.12270613]
[1750655108606,9.0997,2241.3,2240.9,7.17960613]
[1750655109162,0.0577,2241.3,2240.9,7.17960613]
[1750655109699,9.042,2241.2,2240.9,8.17386]
[1750655110109,0.0577,2241.0,2240.7,10.28270613]
[1750655110317,0.1023,2241.1,2240.7,10.33960613]
[1750655111625,0.0577,2241.0,2240.8,10.0]
[1750655111825,0.0446,2241.1,2240.8,10.0]
[1750655112127,0.0577,2241.0,2240.8,10.0]
[1750655112327,0.0446,2241.1,2240.8,10.0]
[1750655112926,0.0615,2241.0,2240.8,10.0]
[1750655113230,0.0446,2241.1,2240.8,10.0]
[1750655113530,0.0446,2241.1,2240.7,3.16]
[1750655114022,0.0615,2241.0,2240.6,10.0]
[1750655114227,0.0615,2241.0,2240.5,10.33960613]
[1750655114381,0.0615,2241.0,2240.6,10.0568]
[1750655114729,0.0446,2241.1,2240.7,7.17950613]
[1750655114880,0.0446,2241.1,2240.8,0.0568]
[1750655115190,0.1061,2241.1,2240.7,7.17950613]
[1750655115785,9.041,2241.0,2240.8,0.0568]
[1750655116025,0.0446,2241.4,2240.9,7.91560613]
[1750655116226,1.852,2241.3,2241.1,7.12270613]
[1750655116377,9.041,2241.3,2241.1,7.12270613]
[1750655116746,9.041,2241.2,2241.1,7.12270613]
[1750655116880,9.041,2241.2,2241.1,7.17950613]
[1750655117805,9.041,2241.2,2241.1,0.0568]
[1750655118517,0.0446,2241.4,2241.2,0.0568]
[1750655118691,10.729,2241.5,2241.2,7.12270613]
[1750655118893,9.041,2241.4,2241.3,0.0568]
[1750655119316,9.041,2241.4,2241.2,7.12270613]
[1750655119486,9.041,2241.4,2241.2,7.17950613]
[1750655120027,9.041,2241.4,2241.2,0.0568]
[1750655120523,9.041,2241.4,2241.0,7.12270613]
[1750655120698,9.041,2241.4,2241.1,1.10756061]
[1750655120900,1.852,2241.4,2241.2,0.0568]
[1750655121096,7.189,2241.3,2241.2,7.17950613]
[1750655121342,9.041,2241.3,2241.2,7.12270613]
[1750655121627,9.041,2241.3,2241.2,8.7727328]
[1750655121829,9.041,2241.3,2241.2,0.82302667]
[1750655122029,9.041,2241.3,2241.2,0.87982667]
[1750655122988,7.189,2241.3,2241.2,0.87982667]
[1750655123197,9.04,2241.3,2241.2,3.2168]
[1750655127542,9.04,2241.3,2241.2,13.2168]
[1750655129200,9.04,2241.3,2241.2,10.0568]
[1750655130640,9.039,2241.3,2241.2,10.0]
[1750655130793,9.039,2241.3,2241.2,10.0568]
[1750655132593,9.039,2241.3,2241.2,0.0568]
[1750655133300,10.729,2241.5,2241.4,0.8293]
[1750655133599,9.039,2241.5,2241.4,8.00880613]
[1750655133796,9.039,2241.5,2241.4,7.95200613]
[1750655134039,9.039,2241.5,2241.4,8.45687612]
[1750655134396,1.851,2241.5,2241.4,8.45687612]
[1750655134602,9.039,2241.5,2241.4,10.72966079]
[1750655134806,1.851,2241.7,2241.5,10.0568]
[1750655135145,7.188,2241.6,2241.5,17.17950613]
[1750655136301,1.851,2241.7,2241.5,17.17950613]
[1750655136508,7.187,2241.6,2241.5,17.17950613]
[1750655136702,7.187,2241.6,2241.5,19.56847221]
[1750655137530,10.726,2242.1,2241.7,0.8293]
[1750655137830,10.726,2242.1,2241.7,7.95200613]
[1750655138129,9.038,2242.0,2241.8,0.0568]
[1750655138507,10.726,2242.1,2241.8,0.0568]
[1750655138804,9.038,2242.0,2241.8,1.17368061]
[1750655139009,10.726,2242.1,2241.8,0.0568]
[1750655139225,9.038,2242.0,2241.8,0.0568]
[1750655140006,9.038,2242.0,2241.8,3.2168]
[1750655140503,9.038,2241.9,2241.8,3.2168]
[1750655140703,9.038,2241.9,2241.8,4.33368061]
[1750655145041,9.037,2241.9,2241.8,4.33578061]
[1750655145836,9.037,2241.9,2241.8,4.27688061]
[1750655146142,9.0957,2241.9,2241.8,3.16]
[1750655146444,9.037,2241.9,2241.8,3.16]
[1750655147505,9.1403,2241.9,2241.8,3.16]
[1750655148335,9.0816,2241.9,2241.8,3.16]
[1750655149759,9.0816,2241.9,2241.6,3.16]
[1750655149951,9.0816,2241.9,2241.6,5.69132462]
[1750655150149,9.1403,2241.9,2241.6,5.69132462]
[1750655151457,9.0816,2241.9,2241.6,5.75022462]
[1750655151919,9.037,2241.9,2241.6,12.87293075]
[1750655152121,9.037,2241.9,2241.6,12.81403075]
[1750655152325,9.037,2241.9,2241.7,0.0589]
[1750655153221,9.037,2241.9,2241.6,10.28270613]
[1750655153452,9.037,2241.9,2241.6,10.34160613]
[1750655153651,10.7706,2242.1,2241.6,11.02708678]
[1750655153869,1.85,2241.8,2241.7,0.0589]
[1750655154550,1.85,2241.8,2241.6,11.08598678]
[1750655154718,7.185,2241.7,2241.6,11.08598678]
[1750655156651,10.7706,2242.1,2241.6,11.02708678]
[1750655156839,10.726,2242.1,2241.8,0.0589]
[1750655157039,9.035,2242.0,2241.7,2.89380868]
[1750655157242,9.035,2241.9,2241.8,7.12270613]
[1750655157431,9.035,2241.9,2241.8,10.34160613]
[1750655158889,10.726,2242.1,2241.8,10.28270613]
[1750655159039,9.035,2241.9,2241.8,10.34160613]
[1750655161469,10.726,2242.1,2241.9,0.0589]
[1750655161629,9.035,2242.0,2241.9,3.2189]
[1750655164163,10.726,2242.1,2241.9,3.2189]
[1750655164364,9.035,2242.0,2241.9,3.2189]
[1750655164559,9.035,2242.0,2241.9,4.67655358]
[1750655165078,10.726,2242.1,2241.9,4.67655358]
[1750655165266,9.035,2242.0,2241.9,4.67655358]
[1750655166782,9.035,2242.0,2241.9,4.61765358]
[1750655167376,10.726,2242.1,2241.9,4.61765358]
[1750655167553,10.726,2242.1,2242.0,3.16]
[1750655167752,19.76,2242.1,2242.0,4.33992597]
[1750655167954,10.726,2242.1,2242.0,4.33992597]
[1750655168155,19.76,2242.1,2242.0,4.33992597]
[1750655170590,19.8633,2242.1,2242.0,3.16]
[1750655173477,19.8046,2242.1,2241.7,3.16]
[1750655173779,0.0617,2242.0,2241.7,3.16]
[1750655173968,7.184,2241.9,2241.7,3.16]
[1750655177181,7.184,2241.9,2241.8,10.0]
[1750655178284,7.184,2241.9,2241.7,3.2178]
[1750655178482,7.184,2241.9,2241.7,5.32858061]
[1750655179086,7.184,2241.9,2241.8,0.0578]
[1750655180784,7.184,2241.9,2241.7,5.32858061]
[1750655180985,7.184,2241.9,2241.8,0.0578]
[1750655182392,7.184,2241.9,2241.8,7.18050613]
[1750655182765,9.034,2241.9,2241.8,8.3678348]
[1750655182961,9.034,2241.9,2241.8,9.1959348]
[1750655184170,1.85,2241.9,2241.8,9.1959348]
[1750655184406,0.1063,2242.8,2242.0,0.0578]
[1750655184558,0.1063,2242.8,2242.5,7.12270613]
[1750655184897,9.0957,2242.7,2242.5,7.12270613]
[1750655185263,1.85,2242.6,2242.5,7.12270613]
[1750655185462,9.034,2242.6,2242.3,7.12270613]
[1750655185664,9.034,2242.6,2242.2,3.16]
[1750655185665,0.1063,2242.5,2242.2,3.16]
[1750655185891,0.0617,2242.4,2242.2,3.16]
[1750655186090,7.184,2242.3,2242.2,13.16]
[1750655186298,7.184,2242.3,2242.2,10.0]
[1750655186495,7.184,2242.3,2242.2,11.00578]
[1750655186963,1.85,2242.6,2242.2,11.81678]
[1750655187291,7.183,2242.5,2242.4,7.18050613]
[1750655187663,10.722,2243.0,2242.5,0.7532]
[1750655187868,9.1383,2242.9,2242.6,7.12270613]
[1750655188379,9.1383,2242.9,2242.5,0.811]
[1750655188597,9.0766,2242.9,2242.6,7.18050613]
[1750655188896,7.183,2242.8,2242.6,7.63269044]
[1750655189084,7.183,2242.8,2242.6,7.57489044]
[1750655189289,7.183,2242.8,2242.6,0.45218431]
[1750655189490,7.183,2242.8,2242.5,1.54657061]
[1750655189691,7.183,2242.8,2242.5,1.60437061]
[1750655189876,7.183,2242.8,2242.6,0.87270767]
[1750655190694,7.183,2242.8,2242.6,0.93050767]
[1750655191465,7.183,2242.8,2242.6,0.87270767]
[1750655191666,1.9553,2242.9,2242.6,0.87270767]
[1750655191906,7.182,2242.8,2242.6,0.87270767]
[1750655192075,1.8936,2242.9,2242.6,7.9954138]
[1750655192280,7.182,2242.8,2242.7,0.85734138]
[1750655192468,10.722,2243.0,2242.8,7.18050613]
[1750655192668,9.031,2242.9,2242.8,7.18050613]
[1750655193095,1.849,2242.9,2242.8,7.18050613]
[1750655193296,12.571,2243.0,2242.9,0.8082]
[1750655193495,19.753,2243.0,2242.9,1.68124475]
[1750655193801,10.722,2243.0,2242.9,1.68124475]
[1750655194104,19.752,2243.0,2242.9,1.68124475]
[1750655194469,0.0446,2243.5,2242.9,1.68124475]
[1750655194670,1.848,2243.2,2243.1,0.0578]
[1750655194866,0.1063,2243.7,2243.2,0.0578]
[1750655195173,0.1063,2243.7,2243.1,7.12270613]
[1750655195372,9.03,2243.6,2243.1,7.12270613]
[1750655195573,10.72,2243.8,2243.4,7.12270613]
[1750655195784,9.03,2243.5,2243.4,7.18050613]
[1750655195982,9.03,2243.5,2243.4,7.12270613]
[1750655196208,9.03,2243.5,2243.2,7.87310613]
[1750655196431,9.03,2243.5,2243.3,0.0578]
[1750655197210,7.181,2243.4,2243.3,0.0578]
[1750655199506,7.181,2243.4,2243.3,0.85534808]
[1750655200084,7.181,2243.4,2243.3,4.01534808]
[1750655201224,7.181,2243.4,2243.3,3.16]
[1750655201697,7.179,2243.4,2243.3,3.16]
[1750655202698,1.848,2243.5,2243.3,10.28270613]
[1750655202903,7.179,2243.4,2243.3,10.34180613]
[1750655204523,7.179,2243.4,2243.3,10.28270613]
[1750655204832,7.179,2243.4,2243.3,11.31097674]
[1750655205029,7.179,2243.4,2243.3,3.16]
[1750655206030,7.179,2243.4,2243.2,3.16]